[Event "Czech Championship 2022"]
[Site "Usti nad Labem"]
[Date "2022.05.15"]
[Round "2.1"]
[White "Stinka, Jakub"]
[Black "Navara, David"]
[Result "0-1"]
[ECO "E02"]
[WhiteElo "2345"]
[BlackElo "2682"]
[Annotator "TA"]
[PlyCount "98"]
[EventDate "2022.05.12"]
[EventType "swiss"]
[EventCountry "CZE"]
[SourceTitle "playchess.com"]
[Source "ChessBase"]
[SourceQuality "1"]
[TimeControl "40/5400+30:1800+30"]

{[%evp 23,98,0,1,0,0,0,17,0,0,10,13,0,0,0,0,0,0,0,0,0,0,-2,0,-5,-6,-62,-75,-97,-94,-100,-92,-96,-93,-131,-98,-87,-85,-91,-90,-139,-143,-110,-114,-143,-135,-140,-102,-116,-80,-201,-149,-141,-122,-641,-413,-606,-199,-192,0,-635,-620,-631,-627,-597,-597,-1036,-877,-816,-782,-2925,-2845,-5073,-5065,-5073,-5014,-5065,-5057]} 1. d4 {[%emt 0:00:05]} d5 {[%emt 0:00:04]} 2. c4 {[%emt 0:00:08]} e6 {[%emt 0:00:03]} 3. Nf3 {[%emt 0:00:18]} Nf6 {[%emt 0:01:24]} 4. g3 {[%emt 0:00:20]} dxc4 {[%emt 0:01:58]} 5. Qa4+ {[%emt 0:00:33]} Nbd7 {[%emt 0:00:21]} 6. Bg2 {[%emt 0:01:12]} a6 {[%emt 0:00:10]} 7. Nc3 {[%emt 0:00:53]} Rb8 {[%emt 0:00:32]} 8. Qxc4 {[%emt 0:00:21]} b5 {[%emt 0:00:06]} 9. Qd3 {[%emt 0:00:23]} Bb7 {[%emt 0:00:41]} 10. O-O {[%emt 0:00:47]} c5 {[%emt 0:01:10]} 11. dxc5 {[%emt 0:00:47]} Nxc5 {[%emt 0:11:05]} 12. Qxd8+ {[%emt 0:09:25]} Rxd8 {[%emt 0:00:27]} 13. b4 {[%emt 0:05:45] E02: Open Catalan: 5 Qa4+.} Ncd7 {[%emt 0:24:03]} 14. a3 {[%emt 0:04:34]} Nb6 {[%emt 0:01:00] [#]} 15. Bf4 $146 {[%emt 0:13:34] With the idea Bc7. The position is equal.} ({Predecessor:} 15. Nd2 Bxg2 16. Kxg2 Be7 17. Nde4 Nxe4 18. Nxe4 f5 19. Ng5 Bf6 20. Ra2 Ke7 21. Be3 {½-½ (37) Prokopchuk,Y (2319)-Voitsekhovsky,S (2513) Kaluga 2012}) 15... Rc8 {[%emt 0:01:37] Inhibits Bc7.} 16. Rfc1 {[%emt 0:05:47]} Be7 {[%emt 0:00:44]} 17. Ne5 {[%emt 0:02:44]} Bxg2 {[%emt 0:00:17]} 18. Kxg2 {[%emt 0:00:03]} O-O {[%emt 0:00:25]} 19. Nd3 {[%emt 0:05:07]} Nfd5 {[%emt 0:02:42]} 20. Nxd5 {[%emt 0:03:48]} Nxd5 {[%emt 0:00:11]} 21. Be5 {[%emt 0:05:31]} Rc4 {[%emt 0:06:59]} 22. Bb2 {[%emt 0:13:31]} Rfc8 {[%emt 0:02:35][%cal Bf8c8,Bc8c2,Bc2b2][%mdl 32]} 23. Ne5 {[%emt 0:01:42]} Rc2 {[%emt 0:02:30]} 24. Rxc2 {[%emt 0:01:54]} (24. e4 $11 Ne3+ 25. Kf3) 24... Rxc2 $15 {[%emt 0:00:17]} 25. Rc1 {[%emt 0:00:12]} Rxb2 {[%emt 0:01:51]} 26. Rc8+ {[%emt 0:01:32]} Bf8 {[%emt 0:00:07]} 27. Nd7 {[%emt 0:00:08][%csl Gd7][%cal Rc8f8] [#]} g5 $1 {[%emt 0:08:19][%cal Og8g7]} 28. Rxf8+ $17 {[%emt 0:03:25][%mdl 4096] Endgame KRN-KRN} Kg7 {[%emt 0:00:09][%cal Od5b6] Strongly threatening ...Nb6!} 29. Ra8 {[%emt 0:01:05]} Rxe2 {[%emt 0:00:12]} 30. Rxa6 {[%emt 0:00:43]} Ra2 {[%emt 0:13:39][%cal Od5b4]} 31. Nc5 {[%emt 0:06:46]} (31. Ra5 $142) 31... Ne3+ $1 {[%emt 0:00:22]} 32. Kf3 {[%emt 0:00:11]} Nd1 {[%emt 0:00:56]} 33. g4 {[%emt 0:02:16]} Rxf2+ {[%emt 0:03:27]} 34. Kg3 {[%emt 0:00:10]} Ra2 {[%emt 0:11:24] Black is more active.} 35. Ra7 {[%emt 0:02:05]} Kg6 {[%emt 0:00:50] Threatens to win with ...Ne3.} 36. Ra8 {[%emt 0:04:20]} (36. Nd7 $17 {is a better defense.}) 36... Nc3 {[%emt 0:01:50]} 37. h4 {[%emt 0:02:35]} h6 {[%emt 0:03:01] ...Ne2+ is the strong threat.} 38. Ra7 $2 {[%emt 0:03:16][%mdl 8192]} (38. hxg5 $17 hxg5 39. Ra5) 38... Ne2+ $1 $19 {[%emt 0:01:16]} 39. Kh3 {[%emt 0:00:50]} Ng1+ $2 {[%emt 0:00:22]} (39... Nf4+ 40. Kg3 Rg2+ 41. Kf3 gxh4 $1 42. Kxf4 h3) 40. Kg3 {[%emt 0:00:16]} Ne2+ $2 {[%emt 0:00:13]} (40... gxh4+ 41. Kxh4 Rg2) 41. Kh3 {[%emt 0:30:31]} Nf4+ {[%emt 0:07:15] Black is clearly winning.} 42. Kg3 {[%emt 0:00:00]} Rg2+ $1 {[%emt 0:00:10]} 43. Kf3 {[%emt 0:00:00] [#]} gxh4 {[%emt 0:00:25][%cal Bg5h4,Bh4h3,Bh3h2][%mdl 32] aiming for ...h3!} 44. Nd7 {[%emt 0:00:00]} (44. Rd7 h3) 44... Kg5 {[%emt 0:03:02]} 45. Ne5 {[%emt 0:00:00]} Rg3+ {[%emt 0:00:25]} 46. Ke4 {[%emt 0:00:00]} h3 {[%emt 0:05:54]} 47. Nxf7+ {[%emt 0:00:00]} Kh4 {[%emt 0:00:19] ( -> ...h2)} 48. Nxh6 {[%emt 0:00:00]} h2 {[%emt 0:00:07]} 49. Kxf4 {[%emt 0:00:00] [#]} Rf3+ $3 {[%emt 0:00:07][%mdl 576] Decoy, Promotion.  Weighted Error Value: White=0.86/Black=0.25 (precise)} 0-1

[Event "Czech Championship 2022"]
[Site "Usti nad Labem"]
[Date "2022.05.15"]
[Round "2.2"]
[White "Horak, Martin"]
[Black "Hracek, Zbynek"]
[Result "0-1"]
[ECO "D33"]
[WhiteElo "2343"]
[BlackElo "2570"]
[Annotator "TA"]
[PlyCount "100"]
[EventDate "2022.05.12"]
[EventType "swiss"]
[EventCountry "CZE"]
[SourceTitle "playchess.com"]
[Source "ChessBase"]
[SourceQuality "1"]
[TimeControl "40/5400+30:1800+30"]

{[%evp 16,100,30,47,29,25,22,35,27,6,10,0,-7,0,0,12,29,0,44,15,0,0,5,-46,0,0,15,15,19,-33,-31,-56,-44,-63,-76,-42,-6,-6,0,-237,-237,-236,-218,-234,-231,-230,-227,-222,-145,-145,-145,-145,-145,-145,-145,-133,-133,-136,-134,-147,-147,-147,-147,-169,-147,-237,-147,-147,-147,-2389,-2292,-2167,-2087,-2397,-1864,-3769,-1857,-1850,-1802,-1730,-1510,-6180,-6154,-5987,-5763,-4952,-1783]} 1. d4 {[%emt 0:00:06]} d5 {[%emt 0:00:17]} 2. c4 {[%emt 0:00:17]} e6 {[%emt 0:00:04]} 3. Nc3 {[%emt 0:01:02]} c5 {[%emt 0:00:08]} 4. cxd5 {[%emt 0:01:07]} exd5 {[%emt 0:00:18]} 5. Nf3 {[%emt 0:00:26]} Nc6 {[%emt 0:00:05]} 6. g3 {[%emt 0:01:49]} Nf6 {[%emt 0:00:19]} 7. Bg2 {[%emt 0:00:17]} cxd4 {[%emt 0:00:06] is the new trend.} 8. Nxd4 {[%emt 0:00:11]} Bc5 {[%emt 0:00:03]} 9. Nb3 {[%emt 0:04:22][%csl LRc5,LRd5]} Bb6 {[%emt 0:00:14] D33: Tarrasch Defence: 6 g3 sidelines.} 10. O-O {[%emt 0:01:37]} (10. Bxd5 Nb4 11. Bf3 Qxd1+ 12. Kxd1 Ng4 13. Bxg4 Bxg4 $11) 10... d4 {[%emt 0:01:51]} 11. Na4 {[%emt 0:02:33]} O-O {[%emt 0:00:17] White is slightly better.} 12. Nxb6 {[%emt 0:07:37]} axb6 {[%emt 0:00:23]} 13. e3 {[%emt 0:15:29]} d3 {[%emt 0:06:15]} 14. Bd2 {[%emt 0:06:54] [#]} Bf5 $146 {[%emt 0:41:22]} ({Predecessor:} 14... Bg4 15. Qb1 Qd7 16. Bc3 Bh3 17. Bxh3 Qxh3 18. Bxf6 gxf6 19. Qxd3 Ne5 20. Qe4 Qh5 {1-0 (36) Rangel,D (2210)-Kett,T (2178) Chess.com INT 2021}) 15. Bc3 {[%emt 0:05:21]} Qd7 {[%emt 0:19:07]} 16. Nd4 {[%emt 0:06:28]} Bg6 {[%emt 0:02:37]} 17. Nxc6 {[%emt 0:06:18]} (17. Qb3 {seems wilder.} Ne4 18. Qxb6 Ne5 19. Qb3) 17... bxc6 {[%emt 0:00:03]} 18. Bxf6 {[%emt 0:00:17]} gxf6 {[%emt 0:00:02]} 19. Qf3 {[%emt 0:00:17]} ({White should play} 19. Qd2 $11) 19... Kg7 {[%emt 0:05:39]} (19... Qe6 $1 $15) 20. Qxc6 $11 {[%emt 0:00:52]} Qxc6 {[%emt 0:00:06]} 21. Bxc6 {[%emt 0:00:05]} Rac8 {[%emt 0:00:09]} 22. Bd5 {[%emt 0:05:05]} (22. Ba4 $11) 22... Rfd8 $15 {[%emt 0:01:57]} 23. e4 {[%emt 0:01:33]} f5 $1 {[%emt 0:01:46]} 24. f3 {[%emt 0:02:03]} fxe4 {[%emt 0:02:39]} 25. fxe4 {[%emt 0:00:55]} Rc2 {[%emt 0:00:29]} (25... Bh5 $5 {[%cal Rd3d2]}) 26. Rad1 {[%emt 0:04:42]} d2 {[%emt 0:02:10]} 27. Kf2 $2 {[%emt 0:10:06]} (27. Rf2 $11) 27... f5 $1 $19 {[%emt 0:01:53]} ({Not} 27... Rxb2 28. Ke3 $14) (27... Bh5 28. g4 Bg6 29. Ke3 $16) 28. Bb3 {[%emt 0:06:41]} Rxb2 {[%emt 0:00:10]} 29. exf5 {[%emt 0:06:33]} Bxf5 {[%emt 0:00:03]} 30. Ke3 {[%emt 0:02:34]} Bg4 {[%emt 0:01:19]} 31. Rb1 {[%emt 0:01:28]} Re8+ {[%emt 0:05:45]} 32. Kf4 {[%emt 0:00:07]} Rxb1 {[%emt 0:02:53] 0x0.001ab4501631dp-1022s more active pieces.} 33. Rxb1 $17 {[%emt 0:00:01][%mdl 4096] Endgame [#] KRB-KRB} Re1 $1 {[%emt 0:00:10]} 34. Rb2 {[%emt 0:00:08]} d1=Q {[%emt 0:00:09]} 35. Bxd1 {[%emt 0:00:03]} Bxd1 {[%emt 0:00:06]} 36. Rxb6 {[%emt 0:00:48] KRB-KR} Re7 {[%emt 0:00:07] Prevents Rb7.} 37. g4 {[%emt 0:01:23]} Ra7 {[%emt 0:00:11] Against Ra6. And now ...Ra4+ would win.} 38. h3 {[%emt 0:01:11]} Ba4 {[%emt 0:00:54]} ({And not} 38... Rxa2 39. Rb7+ Kg8 40. Rb8+ Kg7 41. Rb7+ Kg6 42. Rb6+ Kg7 43. Rb7+ $11) 39. Rb2 {[%emt 0:00:42]} Be8 {[%emt 0:00:11]} 40. h4 {[%emt 0:00:28]} (40. Rb6 $17) 40... Bf7 {[%emt 0:00:54]} 41. h5 {[%emt 0:02:19]} Ra4+ {[%emt 0:16:07]} ({Don't go for} 41... Rxa2 $2 42. Rb5) 42. Kg5 $2 {[%emt 0:02:54][%mdl 8192] Loses the game.} (42. Kg3 $17) 42... h6+ $19 {[%emt 0:02:03] Black is clearly winning.} 43. Kf5 {[%emt 0:00:40] [#]} Ra5+ $1 {[%emt 0:00:41]} 44. Kf4 {[%emt 0:00:18] [#]} Kf6 $1 {[%emt 0:00:09]} 45. Rf2 {[%emt 0:03:40]} Rxa2 {[%emt 0:01:56]} 46. Rf1 {[%emt 0:00:53]} Bc4 {[%emt 0:00:40]} 47. Rf3 {[%emt 0:00:54]} Be6 {[%emt 0:02:50]} 48. g5+ {[%emt 0:02:28]} hxg5+ {[%emt 0:00:06]} 49. Ke4+ {[%emt 0:00:08]} Kg7 {[%emt 0:00:36]} 50. h6+ {[%emt 0:00:28]} Kxh6 {[%emt 0:00:05] Weighted Error Value: White=0.76/Black=0.16 (very precise)} 0-1

[Event "Czech Championship 2022"]
[Site "Usti nad Labem"]
[Date "2022.05.15"]
[Round "2.3"]
[White "Plat, Vojtech"]
[Black "Mica, Marek"]
[Result "1-0"]
[ECO "C01"]
[WhiteElo "2547"]
[BlackElo "2343"]
[Annotator "TA"]
[PlyCount "97"]
[EventDate "2022.05.12"]
[EventType "swiss"]
[EventCountry "CZE"]
[SourceTitle "playchess.com"]
[Source "ChessBase"]
[SourceQuality "1"]
[TimeControl "40/5400+30:1800+30"]

{[%evp 9,97,14,22,0,13,10,49,38,35,8,4,6,15,12,12,0,0,-18,-10,-18,0,-14,-19,-26,-28,-62,-11,-24,-22,-21,-22,-22,0,0,0,0,0,0,3,4,52,61,66,66,42,31,135,128,119,110,79,15,8,13,145,147,167,172,429,470,447,456,29953,29954,12845,29937,12845,5490,4132,4132,29973,2314,29973,29974,29971,29971,29978,29979,29979,29980,29980,29981,29981,29982,29983,29984,29985,29986,29987,29987]} 1. e4 {[%emt 0:00:03]} e6 {[%emt 0:00:11]} 2. d4 {[%emt 0:00:06]} d5 {[%emt 0:00:06]} 3. exd5 {[%emt 0:00:03]} exd5 {[%emt 0:00:07]} 4. Nf3 {[%emt 0:00:04]} Bd6 {[%emt 0:00:37]} 5. Bd3 {[%emt 0:00:19]} Ne7 {[%emt 0:00:42]} 6. h3 {[%emt 0:00:44] C01: French: Exchange Variation.} Bf5 {[%emt 0:02:09]} 7. O-O {[%emt 0:00:09] [#]} f6 $146 {[%emt 0:06:07]} ({Predecessor:} 7... O-O 8. Bg5 f6 9. Be3 Qd7 10. c4 Bxd3 11. Qxd3 c6 12. Nc3 Qe6 13. c5 Bc7 14. Rfe1 {½-½ (14) Popchev,M (2456)-Kosic,D (2501) Stara Pazova 2007}) 8. Re1 {[%emt 0:00:34] aiming for Bxf5. White is slightly better.} Qd7 {[%emt 0:04:22]} 9. c4 {[%emt 0:00:55]} Bxd3 {[%emt 0:09:53]} 10. Qxd3 {[%emt 0:00:03] Hoping for c5.} dxc4 {[%emt 0:00:26]} 11. Qxc4 {[%emt 0:01:24]} Nbc6 {[%emt 0:00:38] Inhibits b4.} 12. Nc3 {[%emt 0:00:36][%cal Ob2b4]} O-O-O {[%emt 0:14:31]} 13. a3 {[%emt 0:02:22]} Rhe8 {[%emt 0:04:50]} 14. Bd2 {[%emt 0:09:11][%cal Bc1d2,Bd2e1,Be1g3][%mdl 32]} Nf5 {[%emt 0:03:16][%cal Of5d4]} 15. d5 {[%emt 0:04:13]} Ne5 {[%emt 0:00:31]} 16. Nxe5 {[%emt 0:00:10]} Bxe5 {[%emt 0:00:32]} 17. Rac1 {[%emt 0:06:27][%cal Oe1e5]} Bxc3 {[%emt 0:06:50]} ({Better is} 17... Kb8 $15) 18. Qxc3 {[%emt 0:03:33]} Rxe1+ {[%emt 0:01:36]} 19. Bxe1 {[%emt 0:00:07]} Ne7 {[%emt 0:01:00]} 20. Qe3 {[%emt 0:08:47]} Kb8 {[%emt 0:02:17]} (20... b6 {is more complex.} 21. d6 Qxd6 22. Qe4 Nd5) 21. d6 $1 {[%emt 0:00:05]} cxd6 {[%emt 0:01:04]} (21... Qxd6 $2 22. Bb4 Qd7 23. Qxe7 $18) 22. f3 {[%emt 0:00:10]} Nc6 {[%emt 0:06:44]} 23. Bg3 {[%emt 0:05:13]} Ka8 {[%emt 0:02:33]} 24. b4 {[%emt 0:00:19][%cal Bb2b4,Bb4b5][%mdl 32]} h6 {[%emt 0:09:37]} (24... Qe8 $11 25. Qxe8 Rxe8) 25. b5 $14 {[%emt 0:05:14][%mdl 1024] White has compensation.} Na5 {[%emt 0:01:10]} 26. Qd3 {[%emt 0:05:02]} b6 {[%emt 0:04:43]} 27. a4 {[%emt 0:01:44]} f5 {[%emt 0:03:33]} (27... Qf7 $14) 28. Qd5+ $16 {[%emt 0:01:31]} Kb8 {[%emt 0:00:32]} 29. Rd1 $36 {[%emt 0:03:32][%cal Rg3d6][%mdl 2048] Black is under strong pressure.} Nb7 {[%emt 0:00:38]} 30. a5 {[%emt 0:00:08]} ({White should try} 30. Re1 $16) 30... bxa5 $11 {[%emt 0:00:59]} 31. Rc1 {[%emt 0:00:06]} g5 {[%emt 0:04:02] [#] White stays focused until the end.} (31... Rc8 $11 {remains equal.} 32. Rc6 Qe8) 32. Rc6 $1 $16 {[%emt 0:00:26] White is much more active.} f4 {[%emt 0:02:17]} 33. Bf2 {[%emt 0:00:04]} Nc5 $2 {[%emt 0:02:23]} (33... a4 34. Kh2 a3) 34. b6 $18 {[%emt 0:01:49]} axb6 {[%emt 0:01:15]} 35. Rxb6+ {[%emt 0:00:23]} Ka7 {[%emt 0:00:17] [#]} (35... Nb7 $18 36. Qxa5 Re8) 36. Rxd6 $3 {[%emt 0:00:28][%mdl 576] Remove Defender} Qxd6 {[%emt 0:00:58]} 37. Bxc5+ {[%emt 0:00:04]} Qxc5+ {[%emt 0:00:08]} 38. Qxc5+ {[%emt 0:00:03][%mdl 4096] Endgame KQ-KR} Kb7 {[%emt 0:00:06]} 39. Qb5+ {[%emt 0:00:19]} Kc8 {[%emt 0:00:47]} 40. Qc6+ {[%emt 0:00:03]} Kb8 {[%emt 0:00:07]} 41. Qxh6 {[%emt 0:30:17] White mates.} Kb7 {[%emt 0:30:49]} 42. Qxg5 {[%emt 0:00:07]} Ra8 {[%emt 0:00:05]} 43. Qxf4 {[%emt 0:01:12]} a4 {[%emt 0:00:06]} 44. Qb4+ {[%emt 0:00:02]} Kc7 {[%emt 0:00:09]} 45. Qa3 {[%emt 0:00:04]} Kb6 {[%emt 0:00:16]} 46. h4 {[%emt 0:00:12][%cal Bh3h4,Bh4h5][%mdl 32]} Kb5 {[%emt 0:00:15]} 47. h5 {[%emt 0:00:09]} Ra6 {[%emt 0:00:08]} 48. Qd3+ {[%emt 0:00:08]} Ka5 {[%emt 0:00:09] [#]} 49. Qxa6+ $3 {[%emt 0:00:12] Weighted Error Value: White=0.07 (flawless) /Black=0.55} 1-0

[Event "Czech Championship 2022"]
[Site "Usti nad Labem"]
[Date "2022.05.15"]
[Round "2.4"]
[White "Gnojek, Petr"]
[Black "Stocek, Jiri"]
[Result "1-0"]
[ECO "E32"]
[WhiteElo "2302"]
[BlackElo "2533"]
[Annotator "TA"]
[PlyCount "165"]
[EventDate "2022.05.12"]
[EventType "swiss"]
[EventCountry "CZE"]
[SourceTitle "playchess.com"]
[Source "ChessBase"]
[SourceQuality "1"]
[TimeControl "40/5400+30:1800+30"]

{[%evp 21,165,0,0,0,0,8,22,20,42,0,1,3,12,22,15,0,0,0,0,0,0,0,0,0,0,10,31,0,17,20,12,15,23,19,13,7,12,10,15,0,5,10,12,14,20,0,48,47,45,41,41,18,18,5,5,5,8,6,102,5,5,0,102,0,5,0,8,8,8,0,6,15,460,421,561,539,779,567,591,586,562,559,580,564,559,557,517,502,12824,12828,12828,12828,12829,12830,12831,12831,12831,12831,12830,12831,12832,12833,12839,12839,12840,12840,12842,12842,12841,12840,12840,12840,12841,12841,12841,26,26,0,12841,12839,12839,12840,12840,12841,12842,12842,12842,12840,27999,27999,27999,27999,27999,27999,27999,27999,27999,27999,27999,27999,27999,27999,27999,27999,27999,27999]} 1. d4 {[%emt 0:00:03]} Nf6 {[%emt 0:01:30]} 2. c4 {[%emt 0:00:10]} e6 {[%emt 0:01:11]} 3. Nc3 {[%emt 0:00:08]} Bb4 {[%emt 0:00:06]} 4. Qc2 {[%emt 0:00:05]} O-O {[%emt 0:00:16]} 5. a3 {[%emt 0:00:07]} Bxc3+ {[%emt 0:00:07]} 6. Qxc3 {[%emt 0:00:05]} d6 {[%emt 0:00:30]} 7. Bg5 {[%emt 0:00:11]} Nbd7 {[%emt 0:01:54]} 8. e3 {[%emt 0:00:27]} b6 {[%emt 0:01:20]} 9. Bd3 {[%emt 0:03:08]} Bb7 {[%emt 0:01:01]} 10. f3 {[%emt 0:01:07]} Rc8 {[%emt 0:04:10]} 11. Ne2 {[%emt 0:03:55]} c5 {[%emt 0:01:28]} 12. Rd1 {[%emt 0:12:00] E32: Nimzo-Indian: Classical (4 Qc2): 4...0-0.} h6 {[%emt 0:09:24]} 13. Bh4 {[%emt 0:01:46]} cxd4 {[%emt 0:19:58]} 14. Qxd4 {[%emt 0:00:10] The position is equal.} Qc7 {[%emt 0:00:46] [#]} 15. O-O $146 {[%emt 0:09:38]} ({Predecessor:} 15. e4 Ne5 16. b3 Nxd3+ 17. Rxd3 Nd7 18. O-O Nc5 19. Re3 e5 20. Qd2 f6 21. Rd1 {½-½ (64) Welser,K (1807)-Seuchter,S (2106) GER email 2006}) 15... e5 {[%emt 0:10:36]} 16. Qc3 {[%emt 0:00:11]} Rfe8 {[%emt 0:02:12]} 17. e4 {[%emt 0:13:44]} b5 {[%emt 0:08:22]} 18. cxb5 {[%emt 0:11:36] aiming for Qxc7.} Qb6+ {[%emt 0:00:13]} 19. Bf2 {[%emt 0:00:02]} Rxc3 {[%emt 0:00:12]} 20. Bxb6 {[%emt 0:00:05]} Rxd3 {[%emt 0:00:07]} 21. Rxd3 {[%emt 0:00:03]} Nxb6 {[%emt 0:00:21][%cal Bd7b6,Bb6c4,Bc4b2][%mdl 32]} 22. Rxd6 {[%emt 0:00:06]} Nc4 {[%emt 0:00:28][%csl LRb2,LRd6]} 23. Rd3 {[%emt 0:00:16]} Nxb2 {[%emt 0:00:18]} 24. Rc3 {[%emt 0:00:17]} (24. Rb3 $5 {[%cal Rb3b2]} Na4 25. Rc1 $11) 24... Rb8 {[%emt 0:15:46]} 25. Rfc1 {[%emt 0:06:49][%mdl 1024] White has compensation.} Ne8 {[%emt 0:04:54]} 26. Rb3 {[%emt 0:03:24]} Na4 {[%emt 0:00:08]} 27. Rb4 {[%emt 0:00:06]} Nb6 {[%emt 0:00:09]} 28. a4 {[%emt 0:00:05]} Kf8 {[%emt 0:01:41]} 29. a5 {[%emt 0:06:23]} Nd7 {[%emt 0:00:26]} 30. Nc3 {[%emt 0:05:27]} Nd6 {[%emt 0:03:03]} 31. Na4 {[%emt 0:06:45]} Ke7 {[%emt 0:01:43]} 32. b6 {[%emt 0:01:27]} a6 {[%emt 0:03:16]} 33. Rc7 {[%emt 0:04:13] Hoping for Nc5.} Ke6 {[%emt 0:01:08]} (33... Rc8 $11 {was preferrable.}) 34. Rb2 $14 {[%emt 0:04:15]} Nb5 {[%emt 0:02:06] [#]} 35. Kf2 $1 {[%emt 0:01:06]} g6 {[%emt 0:01:35]} (35... Nxc7 36. bxc7 Rc8 37. Rxb7 $16) 36. g4 {[%emt 0:02:08][%cal Oa4c3]} Ba8 $1 {[%emt 0:02:34]} (36... Nxc7 37. bxc7 Rc8 38. Rxb7 $16) 37. Rxd7 {[%emt 0:05:35][%mdl 64] Remove Defender} Kxd7 {[%emt 0:00:05]} 38. Nc5+ {[%emt 0:00:02]} Kc6 {[%emt 0:00:20]} 39. Nxa6 {[%emt 0:00:04]} Rh8 {[%emt 0:01:24] [#]} (39... Rc8 $11) 40. Rc2+ {[%emt 0:01:50]} (40. Nb4+ $1 $16 Kb7 41. Rc2 (41. Nd3 Rd8 $14)) 40... Kd6 $11 {[%emt 0:00:15]} 41. Rb2 {[%emt 0:04:55]} (41. Nb4 $11) 41... Kc6 $16 {[%emt 0:12:37]} 42. Rc2+ {[%emt 0:01:04]} (42. Nb4+ $16 Kb7 43. Rc2 (43. Nd3 Rd8 $16)) 42... Kd6 $11 {[%emt 0:00:05]} 43. Nc7 {[%emt 0:10:38]} Bc6 {[%emt 0:09:47]} 44. Rd2+ {[%emt 0:00:09]} Nd4 {[%emt 0:04:10]} 45. a6 {[%emt 0:02:17][%cal Ba5a6,Ba6a7][%mdl 32]} Rb8 {[%emt 0:04:44]} 46. Rb2 {[%emt 0:00:16]} Kc5 $2 {[%emt 0:00:46][%mdl 8192]} (46... Rxb6 $1 $11 {and Black stays safe.} 47. Rxb6 Kxc7) 47. b7 $18 {[%emt 0:00:31]} Kd6 {[%emt 0:00:11]} 48. Nd5 {[%emt 0:02:16] Black must now prevent Rb6.} Kc5 {[%emt 0:04:12]} 49. Rb1 {[%emt 0:00:46]} Bxb7 {[%emt 0:00:34]} 50. a7 {[%emt 0:02:55][%mdl 64] Deflection} ({Not} 50. axb7 Nb5 $11) 50... Ra8 {[%emt 0:00:18]} 51. Rxb7 {[%emt 0:00:04][%mdl 4096] Endgame KRN-KRN} Nc6 {[%emt 0:00:13]} 52. Rxf7 {[%emt 0:00:09]} g5 {[%emt 0:01:00]} 53. Rc7 {[%emt 0:01:40] And now Ne7 would win.} Kd6 {[%emt 0:00:24] Prevents Ne7.} 54. Rh7 {[%emt 0:00:56]} Rxa7 {[%emt 0:00:09]} (54... Kc5 $142 55. Nc7 Rxa7 56. Ne6+ Kd6 57. Rxh6 Ke7 58. Nxg5 Ra2+ 59. Kg3 Nd4) 55. Rxa7 {[%emt 0:00:31]} Nxa7 {[%emt 0:00:04] KN-KN} 56. Ne3 {[%emt 0:00:03]} Ke6 {[%emt 0:00:07]} 57. Nf5 {[%emt 0:00:04]} Nc6 {[%emt 0:00:14]} 58. Nxh6 {[%emt 0:00:04]} Nb4 {[%emt 0:00:05]} 59. Nf5 {[%emt 0:00:08]} Nd3+ {[%emt 0:00:05]} 60. Kg3 {[%emt 0:00:22]} Kf6 {[%emt 0:00:06]} 61. h4 {[%emt 0:00:14]} gxh4+ {[%emt 0:00:19]} 62. Kxh4 {[%emt 0:00:23]} Kg6 {[%emt 0:00:40]} 63. g5 {[%emt 0:00:31]} Nf4 {[%emt 0:00:11]} 64. Kg4 {[%emt 0:00:12]} Kf7 {[%emt 0:00:14]} 65. Nd6+ {[%emt 0:02:22]} Kg6 {[%emt 0:00:07]} 66. Nc4 {[%emt 0:00:07]} Nd3 {[%emt 0:00:07]} 67. Kh4 {[%emt 0:00:04]} Kf7 {[%emt 0:00:24]} 68. Kg3 $2 {[%emt 0:02:28]} (68. Kh5 $18 Kg7 69. Nd6 Nf4+ 70. Kg4) 68... Kg6 $11 {[%emt 0:00:33]} 69. Kh4 $2 {[%emt 0:00:09][%mdl 8192]} (69. Ne3 $11 Kh5 70. Ng2) 69... Kf7 $18 {[%emt 0:00:05]} 70. Ne3 {[%emt 0:04:22]} Kg7 {[%emt 0:00:39]} 71. Kh5 {[%emt 0:01:18]} Nf4+ {[%emt 0:01:01]} 72. Kg4 {[%emt 0:03:21]} Nd3 {[%emt 0:00:33]} 73. Kf5 {[%emt 0:01:14]} Ne1 {[%emt 0:00:07]} 74. Kxe5 {[%emt 0:00:24]} Nxf3+ {[%emt 0:00:23]} 75. Kf4 {[%emt 0:00:02] White mates.} Ne1 {[%emt 0:00:33]} 76. Nf5+ {[%emt 0:00:57]} Kg6 {[%emt 0:00:12]} 77. Nh4+ {[%emt 0:00:19]} Kf7 {[%emt 0:00:28]} 78. g6+ {[%emt 0:00:46]} Kf6 {[%emt 0:00:17]} 79. e5+ {[%emt 0:00:05]} Ke6 {[%emt 0:00:33]} 80. Kg5 {[%emt 0:00:29]} Nd3 {[%emt 0:00:22]} 81. Nf3 {[%emt 0:00:03]} Nf2 {[%emt 0:00:10]} 82. Kh6 {[%emt 0:00:19]} Ng4+ {[%emt 0:00:12]} 83. Kh7 {[%emt 0:00:05] Weighted Error Value: White=0.19 (very precise) /Black=0.28 (precise)} 1-0